Workbook

Sheet Sheet1
A1: 附件：
A2: 2023年乐山市市级事业单位公开考试招聘工作人员（教育类）面试成绩、总成绩排名及进入体检人员名单
A3: 序号 | B3: 主管部门 | C3: 报考单位 | D3: 岗位名称 | E3: 岗位编码 | F3: 招聘人数 | G3: 考生姓名 | H3: 笔试总成绩 | I3: 笔试折合成绩 | J3: 面试成绩 | K3: 面试折合成绩 | L3: 总成绩 | M3: 总成绩排名 | N3: 是否进入体检
A4: 1 | B4: 乐山市教育局 | C4: 四川省乐山第一中学校 | D4: 高中语文教学 | E4: 10020201 | F4: 1 | G4: 黄姗姗 | H4: 73.5 | I4: =H4/2 -> 36.750 | J4: 77.200 | K4: =J4/2 -> 38.600 | L4: =I4+K4 -> 75.350 | M4: 1 | N4: 是
A5: 2 | G5: 周颖 | H5: 68 | I5: 34.000 | J5: 76.900 | K5: 38.450 | L5: 72.450 | M5: 2
A6: 3 | G6: 徐敏 | H6: 71 | I6: 35.500 | J6: 70.600 | K6: 35.300 | L6: 70.800 | M6: 3
A7: 6 | D7: 高中数学教学 | E7: 10020202 | F7: 1 | G7: 李乾午 | H7: 73 | I7: 36.500 | J7: 84.400 | K7: 42.200 | L7: 78.700 | M7: 1 | N7: 是
A8: 4 | G8: 王蔚 | H8: 76 | I8: 38.000 | J8: 75.400 | K8: 37.700 | L8: 75.700 | M8: 2
A9: 5 | G9: 邹倩玉 | H9: 73 | I9: 36.500 | J9: 71.400 | K9: 35.700 | L9: 72.200 | M9: 3
A10: 7 | D10: 高中物理教学 | E10: 10020203 | F10: 1 | G10: 陈思凯 | H10: 73 | I10: =H10/2 -> 36.500 | J10: 85.600 | K10: =J10/2 -> 42.800 | L10: 79.300 | M10: 1 | N10: 是
A11: 8 | G11: 李越 | H11: 69.5 | I11: 34.750 | J11: 78.200 | K11: 39.100 | L11: 73.850 | M11: 2
A12: 9 | D12: 高中地理教学 | E12: 10020204 | F12: 1 | G12: 李晓红 | H12: 78 | I12: 39.000 | J12: 87.200 | K12: 43.600 | L12: 82.600 | M12: 1 | N12: 是
A13: 11 | G13: 贾玉娟 | H13: 69 | I13: 34.500 | J13: 85.200 | K13: 42.600 | L13: 77.100 | M13: 2
A14: 10 | G14: 邹睿 | H14: 69 | I14: 34.500 | J14: 73.200 | K14: 36.600 | L14: 71.100 | M14: 3
A15: 12 | D15: 高中政治教学 | E15: 10020205 | F15: 1 | G15: 宋冬华 | H15: 66 | I15: 33.000 | J15: 78.600 | K15: 39.300 | L15: 72.300 | M15: 1 | N15: 是
A16: 13 | G16: 李恬瑶 | H16: 65 | I16: 32.500 | J16: 71.800 | K16: 35.900 | L16: 68.400 | M16: 2
A17: 14 | G17: 朱鑫羽 | H17: 64.5 | I17: 32.250 | J17: 65.800 | K17: 32.900 | L17: 65.150 | M17: 3
A18: 15 | C18: 乐山市草堂高级中学 | D18: 化学实验员 | E18: 10040201 | F18: 1 | G18: 颜鎏洋 | H18: 78 | I18: 39.000 | J18: 85.800 | K18: 42.900 | L18: 81.900 | M18: 1 | N18: 是
A19: 16 | G19: 张艺孟 | H19: 74.5 | I19: 37.250 | J19: 82.400 | K19: 41.200 | L19: 78.450 | M19: 2
A20: 17 | G20: 李宗蓉 | H20: 72.5 | I20: 36.250 | J20: 63.800 | K20: =J20/2 -> 31.900 | L20: 68.150 | M20: 3
A21: 20 | C21: 四川省乐山市第一职业高级中学 | D21: 中职政治教学 | E21: 10050201 | F21: 1 | G21: 周诗谣 | H21: 69.5 | I21: 34.750 | J21: 84.400 | K21: 42.200 | L21: 76.950 | M21: 1 | N21: 是
A22: 18 | G22: 晏永妮 | H22: 70.5 | I22: 35.250 | J22: 83.100 | K22: 41.550 | L22: 76.800 | M22: 2
A23: 19 | G23: 杨昆 | H23: 70.5 | I23: 35.250 | J23: 62.800 | K23: 31.400 | L23: 66.650 | M23: 3
A24: 21 | D24: 中职英语教学 | E24: 10050202 | F24: 1 | G24: 徐靖垚 | H24: 84.5 | I24: 42.250 | J24: 88.060 | K24: 44.030 | L24: 86.280 | M24: 1 | N24: 是
A25: 23 | G25: 龚淑峰 | H25: 74.5 | I25: 37.250 | J25: 81.080 | K25: 40.540 | L25: 77.790 | M25: 2
A26: 22 | G26: 曾颖娴 | H26: 75 | I26: 37.500 | J26: 77.600 | K26: 38.800 | L26: 76.300 | M26: 3
A27: 24 | D27: 中职数学教学 | E27: 10050203 | F27: 1 | G27: 吴美玲 | H27: 68 | I27: 34.000 | J27: 85.100 | K27: 42.550 | L27: 76.550 | M27: 1 | N27: 是
A28: 25 | G28: 唐瑜昕 | H28: 67 | I28: 33.500 | J28: 81.200 | K28: 40.600 | L28: 74.100 | M28: 2
A29: 26 | G29: 郭希杰 | H29: 66 | I29: 33.000 | J29: 缺考
A30: 28 | C30: 乐山市实验中学 | D30: 初中语文教学 | E30: 10060201 | F30: 1 | G30: 张竣淋 | H30: 75 | I30: 37.500 | J30: 88.000 | K30: =J30/2 -> 44.000 | L30: =I30+K30 -> 81.500 | M30: 1 | N30: 是
A31: 27 | G31: 洪莉 | H31: 77 | I31: 38.500 | J31: 82.000 | K31: 41.000 | L31: 79.500 | M31: 2
A32: 29 | G32: 秦利 | H32: 73 | I32: 36.500 | J32: 78.600 | K32: 39.300 | L32: 75.800 | M32: 3
A33: 30 | D33: 初中数学教学 | E33: 10060202 | F33: 2 | G33: 蒋可 | H33: 76.5 | I33: 38.250 | J33: 82.000 | K33: 41.000 | L33: 79.250 | M33: 1 | N33: 是
A34: 34 | G34: 杨婷 | H34: 68 | I34: 34.000 | J34: 82.300 | K34: 41.150 | L34: 75.150 | M34: 2 | N34: 是
A35: 36 | G35: 黄荟蒙 | H35: 67.5 | I35: 33.750 | J35: 76.500 | K35: 38.250 | L35: 72.000 | M35: 3
A36: 33 | G36: 何晓玲 | H36: 68.5 | I36: 34.250 | J36: 74.800 | K36: 37.400 | L36: 71.650 | M36: 4
A37: 35 | G37: 王秋怡 | H37: 67.5 | I37: 33.750 | J37: 75.600 | K37: 37.800 | L37: 71.550 | M37: 5
A38: 32 | G38: 杜竹岩 | H38: 71 | I38: 35.500 | J38: 71.500 | K38: 35.750 | L38: 71.250 | M38: 6
A39: 31 | G39: 范美芩 | H39: 71 | I39: 35.500 | J39: 70.600 | K39: 35.300 | L39: 70.800 | M39: 7
A40: 37 | D40: 初中政治教学 | E40: 10060203 | F40: 1 | G40: 辜瑞敏 | H40: 76.5 | I40: 38.250 | J40: 90.340 | K40: 45.170 | L40: 83.420 | M40: 1 | N40: 是
A41: 38 | G41: 廖雅丽 | H41: 73 | I41: 36.500 | J41: 88.800 | K41: 44.400 | L41: 80.900 | M41: 2
A42: 39 | G42: 曾清秋 | H42: 71.5 | I42: 35.750 | J42: 76.020 | K42: 38.010 | L42: 73.760 | M42: 3
A43: 40 | D43: 初中物理教学 | E43: 10060204 | F43: 1 | G43: 李金锾 | H43: 70.5 | I43: 35.250 | J43: 82.000 | K43: 41.000 | L43: 76.250 | M43: 1 | N43: 是
A44: 41 | G44: 梁杰 | H44: 65.5 | I44: 32.750 | J44: 缺考
A45: 42 | G45: 高婷婷 | H45: 63 | I45: 31.500 | J45: 0.000
A46: 44 | D46: 初中体育教学 | E46: 10060205 | F46: 1 | G46: 张敏 | H46: 73 | I46: 36.500 | J46: 80.000 | K46: =J46/2 -> 40.000 | L46: =I46+K46 -> 76.500 | M46: 1 | N46: 是
A47: 45 | G47: 杨程 | H47: 70 | I47: 35.000 | J47: 82.500 | K47: 41.250 | L47: 76.250 | M47: 2
A48: 43 | G48: 胡洋宇 | H48: 73.5 | I48: 36.750 | J48: 76.880 | K48: 38.440 | L48: 75.190 | M48: 3
A49: 47 | D49: 初中信息技术教学 | E49: 10060206 | F49: 1 | G49: 刘紫荣 | H49: 70.5 | I49: 35.250 | J49: 86.400 | K49: 43.200 | L49: 78.450 | M49: 1 | N49: 是
A50: 48 | G50: 彭山清 | H50: 69 | I50: 34.500 | J50: 85.600 | K50: 42.800 | L50: 77.300 | M50: 2
A51: 46 | G51: 赖林建 | H51: 70.5 | I51: 35.250 | J51: 82.300 | K51: 41.150 | L51: 76.400 | M51: 3
A52: 49 | C52: 乐山市实验小学 | D52: 小学语文教学 | E52: 10070201 | F52: 3 | G52: 陈荟竹 | H52: 81 | I52: 40.500 | J52: 86.260 | K52: 43.130 | L52: 83.630 | M52: 1 | N52: 是
A53: 50 | G53: 戚书丹 | H53: 77 | I53: 38.500 | J53: 90.220 | K53: 45.110 | L53: 83.610 | M53: 2 | N53: 是
A54: 53 | G54: 曾梦雪 | H54: 73.5 | I54: 36.750 | J54: 91.360 | K54: 45.680 | L54: 82.430 | M54: 3 | N54: 是
A55: 51 | G55: 周静 | H55: 75.5 | I55: 37.750 | J55: 84.440 | K55: 42.220 | L55: 79.970 | M55: 4
A56: 52 | G56: 王跃 | H56: 75 | I56: 37.500 | J56: 83.800 | K56: 41.900 | L56: 79.400 | M56: 5
A57: 54 | G57: 贺敏 | H57: 73.5 | I57: 36.750 | J57: 83.800 | K57: 41.900 | L57: 78.650 | M57: 6
A58: 55 | G58: 谢利平 | H58: 70 | I58: 35.000 | J58: 82.300 | K58: 41.150 | L58: 76.150 | M58: 7
A59: 56 | G59: 朱家佳 | H59: 68.5 | I59: 34.250 | J59: 78.900 | K59: 39.450 | L59: 73.700 | M59: 8
A60: 57 | G60: 赵尹停 | H60: 68 | I60: 34.000 | J60: 76.600 | K60: 38.300 | L60: 72.300 | M60: 9
A61: 59 | D61: 小学数学教学 | E61: 10070202 | F61: 1 | G61: 王芯宇 | H61: 77.5 | I61: 38.750 | J61: 85.800 | K61: 42.900 | L61: 81.650 | M61: 1 | N61: 是
A62: 58 | G62: 张湫鹭 | H62: 77.5 | I62: 38.750 | J62: 80.200 | K62: 40.100 | L62: 78.850 | M62: 2
A63: 60 | G63: 陈燕 | H63: 66.5 | I63: 33.250 | J63: 76.200 | K63: 38.100 | L63: 71.350 | M63: 3
A64: 61 | D64: 小学科学教学 | E64: 10070203 | F64: 1 | G64: 黄燕 | H64: 58 | I64: 29.000 | J64: 87.000 | K64: 43.500 | L64: 72.500 | M64: 1 | N64: 是
A65: 62 | G65: 杨思琴 | H65: 53 | I65: 26.500 | J65: 缺考
A66: 63 | C66: 乐山师范学校附属小学 | D66: 小学科学教学 | E66: 10080201 | F66: 1 | G66: 帅鉴珂 | H66: 82 | I66: 41.000 | J66: 89.780 | K66: =J66/2 -> 44.890 | L66: =I66+K66 -> 85.890 | M66: 1 | N66: 是
A67: 64 | G67: 杨修瑞 | H67: 72.5 | I67: 36.250 | J67: 89.240 | K67: 44.620 | L67: 80.870 | M67: 2
A68: 66 | C68: 乐山市实验幼儿园 | D68: 幼儿教学 | E68: 10090201 | F68: 2 | G68: 陶茂迪 | H68: 74 | I68: 37.000 | J68: 83.000 | K68: 41.500 | L68: 78.500 | M68: 1 | N68: 是
A69: 67 | G69: 曾文秋 | H69: 69 | I69: 34.500 | J69: 78.800 | K69: 39.400 | L69: 73.900 | M69: 2 | N69: 是
A70: 65 | G70: 高蓉芳 | H70: 78.5 | I70: 39.250 | J70: 64.200 | K70: 32.100 | L70: 71.350 | M70: 3
A71: 70 | G71: 梁娟 | H71: 64.5 | I71: 32.250 | J71: 72.200 | K71: 36.100 | L71: 68.350 | M71: 4
A72: 68 | G72: 彭莉 | H72: 67.5 | I72: 33.750 | J72: 67.200 | K72: 33.600 | L72: 67.350 | M72: 5
A73: 69 | G73: 徐夏雨 | H73: 67 | I73: 33.500 | J73: 缺考
A74: 71 | C74: 乐山市机关幼儿园 | D74: 幼儿教学 | E74: 10100201 | F74: 1 | G74: 祝玉婷 | H74: 73 | I74: =H74/2 -> 36.500 | J74: 87.200 | K74: =J74/2 -> 43.600 | L74: =I74+K74 -> 80.100 | M74: 1 | N74: 是
A75: 72 | G75: 王婧涵 | H75: 69.5 | I75: 34.750 | J75: 79.000 | K75: =J75/2 -> 39.500 | L75: =I75+K75 -> 74.250 | M75: 2
A76: 73 | G76: 陈红 | H76: 67 | I76: 33.500 | J76: 缺考
A77: 75 | C77: 乐山市奥林匹克学校 | D77: 思想政治教育 | E77: 10110201 | F77: 1 | G77: 杜宋汶 | H77: 65.5 | I77: 32.750 | J77: 84.800 | K77: =J77/2 -> 42.400 | L77: =I77+K77 -> 75.150 | M77: 1 | N77: 是
A78: 74 | G78: 肖学琴 | H78: 67.5 | I78: 33.750 | J78: 78.200 | K78: 39.100 | L78: 72.850 | M78: 2
A79: 76 | G79: 耍惹西林 | H79: 56.5 | I79: 28.250 | J79: 77.900 | K79: 38.950 | L79: 67.200 | M79: 3
A80: 79 | C80: 乐山市特殊教育学校 | D80: 特殊教育教学 | E80: 10120201 | F80: 1 | G80: 罗菲 | H80: 69 | I80: 34.500 | J80: 87.600 | K80: 43.800 | L80: 78.300 | M80: 1 | N80: 是
A81: 78 | G81: 何海燕 | H81: 69 | I81: 34.500 | J81: 74.400 | K81: 37.200 | L81: 71.700 | M81: 2
A82: 77 | G82: 杨淋钧 | H82: 71.5 | I82: 35.750 | J82: 71.000 | K82: 35.500 | L82: 71.250 | M82: 3
A83: 81 | D83: 舞蹈教育教学 | E83: 10120202 | F83: 1 | G83: 杨文艺 | H83: 72 | I83: 36.000 | J83: 87.400 | K83: 43.700 | L83: 79.700 | M83: 1 | N83: 是
A84: 80 | G84: 吴慧苹 | H84: 73 | I84: 36.500 | J84: 84.400 | K84: 42.200 | L84: 78.700 | M84: 2
A85: 82 | G85: 王颖 | H85: 69 | I85: 34.500 | J85: 53.800 | K85: 26.900 | L85: 61.400 | M85: 3

Sheet Sheet2

Sheet Sheet3
